Cogmind - Beta 11 @@@ ROGUE MODE // 2022.03.29 @ 04:18:31 Player: Wyvric Result: Destroyed by L-61 Swordsman with Power Sword Performance ------------- Evolutions (6) 3000 Regions Visited (24) 4800 Robots Destroyed (173) 865 Value Destroyed (6512) 6512 Prototype IDs (40) 800 Alien Tech Used (0) 0 Bonus (5886) 5886 TOTAL SCORE: 21863 Bonus ------- High Alert Combat Kills 78 Follower Combat Kills 1146 Entered DSFs 500 Network Hubs Disabled 200 Met Warlord at Base 500 MAIN.C Attacked Warlord 500 Warlord Defense Kill 2962 Cogmind --------- Core Integrity 0/1150 Matter 68/300 Energy 62/100 System Corruption 10% Temperature Cool (0) Movement Core (1400) Ox27 Location -4/Armory Parts ------- > --- POWER (1) -------- (None) > --- PROPULSION (6) --- (None) > --- UTILITY (10) ----- Huge Storage Unit Enhanced Optical Array Advanced Signal Interpreter Improved Hacking Suite Advanced System Shield > --- WEAPON (2) ------- Lance > --- INVENTORY (25) --- Improved Fusion Compressor Centrium Leg Combat Linear Gravjet Experimental Cesium-ion Thruster Experimental Cesium-ion Thruster Impulse Thruster Diametric Drive Advanced Sensor Array Long-range Sensor Array Experimental Melee Analysis Suite Advanced Target Analyzer Advanced Focal Shield Advanced Shield Generator Advanced Dynamic Insulation System Mapping Drone Bay (3/3) Advanced Variable Charge Gun Enhanced Quantum Rifle Improved KE Penetrator Heavy Proton Missile Launcher Peak State ------------ > --- POWER ------------ Reinforced Antimatter Reactor > --- PROPULSION ------- Improved Gravmag System Improved Gravmag System Antigrav System Antigrav System Antigrav System Antigrav System > --- UTILITY ---------- Large Storage Unit Enhanced Optical Array Advanced Melee Analysis Suite Improved Target Analyzer Advanced Shield Generator Improved Hacking Suite Improved Hacking Suite Improved System Shield Advanced System Shield Drone Bay > --- WEAPON ----------- Advanced Variable Charge Gun Phasing Sabre > --- INVENTORY -------- Antimatter Reactor Centrium Wheel Impulse Thruster Huge Storage Unit Long-range Sensor Array Advanced Transmission Jammer Advanced Focal Shield Mapping Drone Bay Advanced Variable Charge Gun Smartbomb Launcher Micro-nuke Launcher Vortex Catalyst Activator Lance [Rating: 113] Favorites ----------- Power Light Nuclear Core Engine Light Angular Momentum Engine Power Core Light Nuclear Core Reactor Reinforced Antimatter Reactor Propulsion Improved Treads Treads Improved Treads Leg Aluminum Leg Wheel Centrium Wheel Hover Unit Improved Gravmag System Flight Unit VTOL Module Utility Improved Hacking Suite Device Advanced Sensor Array Storage Large Storage Unit Processor Improved Melee Analysis Suite Hackware Improved Hacking Suite Protection Hardened Light Armor Plating Weapon Phasing Sabre Energy Gun EM Pulse Gun Energy Cannon Advanced Beam Cannon Ballistic Gun Light Assault Rifle Launcher Heavy Missile Launcher Impact Weapon Power Maul Slashing Weapon Phasing Sabre Piercing Weapon Lance Special Melee Weapon Datajack Build | -11 -10 -10 -9 -9 -9 -8 -8 -8 -7 -7 -7 -7 -6 -6 -6 -6 -6 -5 -5 -5 -5 -4 -4 -4 ------- Run | Scr Mat Min Mat Min Exi Min Mat Sto Fac Was Fac DSF Fac Ext Cet Arc Hub Fac Upp Upp War Pro Fac Arm Slots Evolved 12 | . . . 2 . . . 2 . 2 . . . 2 . . . . 2 . . . . 2 . Power . | . . . . . . . . . . . . . . . . . . . . . . . . . Propulsion 4 | . . . . . . . 1 . 1 . . . . . . . . . . . . . 2 . Utility 8 | . . . 2 . . . 1 . 1 . . . 2 . . . . 2 . . . . . . Weapon . | . . . . . . . . . . . . . . . . . . . . . . . . . Parts Attached 301 | 6 5 6 4 10 5 11 25 23 5 2 3 7 12 25 21 21 1 8 22 9 10 19 27 14 Power 31 | 1 . 3 1 3 . 3 1 . . . . 1 1 5 1 2 . 1 . 1 . 1 4 2 Engine 17 | 1 . 3 1 2 . . 1 . . . . 1 . 4 1 1 . 1 . 1 . . . . Core 11 | . . . . 1 . 3 . . . . . . 1 1 . 1 . . . . . . 3 1 Reactor 3 | . . . . . . . . . . . . . . . . . . . . . . 1 1 1 Propulsion 78 | 2 1 1 . 3 2 1 5 6 1 . 1 2 . 2 9 9 . 2 9 3 3 7 6 3 Treads 27 | . . . . . 2 1 1 6 1 . 1 . . . 3 4 . . 3 . 1 2 1 1 Leg 17 | 2 1 1 . 3 . . 4 . . . . . . . 3 . . . 2 . . . 1 . Wheel 5 | . . . . . . . . . . . . . . . . . . . . 2 1 1 1 . Hover 26 | . . . . . . . . . . . . 2 . 2 3 5 . 2 3 1 1 4 3 . Flight 3 | . . . . . . . . . . . . . . . . . . . 1 . . . . 2 Utility 98 | 1 3 . 2 1 3 3 9 7 3 2 2 2 5 10 5 6 . 5 7 2 3 3 11 3 Device 37 | . 1 . . 1 . . 1 1 2 2 2 1 2 5 2 . . 2 3 . 1 3 6 2 Storage 14 | 1 2 . . . 3 . 1 2 . . . 1 . . 1 1 . . . 1 . . 1 . Processor 13 | . . . 1 . . . 1 . . . . . . 1 1 . . 2 . 1 1 . 4 1 Hackware 10 | . . . . . . . 2 . . . . . 3 1 . 3 . 1 . . . . . . Protection 24 | . . . 1 . . 3 4 4 1 . . . . 3 1 2 . . 4 . 1 . . . Artifact . | . . . . . . . . . . . . . . . . . . . . . . . . . Weapon 94 | 2 1 2 1 3 . 4 10 10 1 . . 2 6 8 6 4 1 . 6 3 4 8 6 6 Energy Gun 23 | 2 1 1 . 2 . 1 4 3 . . . . . . 2 1 . . 1 . . 3 2 . Energy Cannon 2 | . . . . . . . . 1 . . . . . . . . . . . . . . . 1 Ballistic Gun 28 | . . 1 1 1 . 3 1 2 . . . . 3 1 2 2 1 . 3 1 2 4 . . Ballistic Cannon . | . . . . . . . . . . . . . . . . . . . . . . . . . Launcher 12 | . . . . . . . . 1 1 . . . . . . . . . . 2 2 . 4 2 Special Weapon . | . . . . . . . . . . . . . . . . . . . . . . . . . Impact Weapon 3 | . . . . . . . . . . . . 1 1 1 . . . . . . . . . . Slashing Weapon 23 | . . . . . . . 5 3 . . . 1 2 4 2 1 . . 2 . . 1 . 2 Piercing Weapon 1 | . . . . . . . . . . . . . . . . . . . . . . . . 1 Special Melee Weapon 2 | . . . . . . . . . . . . . . 2 . . . . . . . . . . Unidentified Prototypes 14 | . . . . . . . . 5 1 . . . 1 . 2 1 . . . . 1 1 . 2 Parts Lost 84 | . . 4 2 8 . 4 3 . . 3 . . 1 10 5 3 . 2 7 1 3 10 11 7 Power 15 | . . 1 1 3 . 1 1 . . . . . . 2 1 . . 1 1 . . . 1 2 Propulsion 26 | . . 1 . . . 1 . . . . . . . 1 2 2 . 1 3 1 2 3 7 2 Utility 28 | . . . . 3 . 1 1 . . 3 . . 1 7 2 1 . . 2 . 1 3 2 1 Weapon 15 | . . 2 1 2 . 1 1 . . . . . . . . . . . 1 . . 4 1 2 Highest Loss Streak 10 | . . 4 2 6 . 3 2 . . 3 . . 1 6 3 1 . 2 5 1 2 10 5 3 To Critical Strikes . | . . . . . . . . . . . . . . . . . . . . . . . . . Average Slot Usage (%) 91 | . 94 99 92 85 94 99 99 99 98 83 58 55 84 76 90 91 86 85 88 91 94 87 94 58 Engine 4 | . 14 13 10 5 11 . 2 9 7 6 . 7 2 4 5 2 6 5 2 3 5 . . . Core 2 | . . . . 3 . 10 6 . . . . . 3 1 . 3 . . . . . . 2 2 Treads 6 | . . . . . 10 21 6 24 30 26 29 6 . . 10 10 . . 2 . 1 5 2 . Leg 7 | . 28 27 22 22 11 . 20 2 . . . . . . 7 9 . . 1 . . . 2 . Hover 6 | . . . . . . . . . . . . 10 13 13 4 3 20 17 10 16 17 12 21 . Device 5 | . 9 14 11 5 . . 7 . 10 4 13 9 13 6 3 . . 3 4 5 3 4 11 5 Storage 10 | . 14 14 11 11 28 22 11 9 7 6 . 3 6 6 6 6 6 5 5 9 11 7 5 5 Processor 9 | . . . 11 11 11 11 7 . . . . . . 2 5 6 6 15 17 17 17 13 12 20 Hackware 13 | . . . . . . . 2 18 15 15 15 15 31 24 20 20 33 28 23 23 23 23 20 13 Protection 5 | . . . 4 4 . 10 15 17 10 11 . . . 5 12 14 6 1 4 1 . 1 . . Energy Gun 5 | . 27 22 4 5 11 6 8 1 . . . . . . 1 . . . 2 3 . 4 3 . Ballistic Gun 5 | . . 5 17 15 11 15 3 4 . . . . 5 5 2 11 . . 3 . 1 3 . . Slashing Weapon 2 | . . . . . . . 6 9 10 7 . . 4 3 8 . 6 5 3 5 3 . 4 2 Naked Turns . | . . . . . . . . . . . . . . . . . . . . . . . . . Heaviest Build 124 | 12 28 29 33 37 64 64 60 67 72 72 2 34 38 41 109 124 40 40 54 38 53 65 105 114 Greatest Support 86 | 20 20 20 20 20 46 46 69 66 86 86 3 40 40 40 60 69 40 41 41 41 41 86 64 75 Greatest Overweight (x) 6 | . 1 2 1 1 3 1 . 1 . . . 1 . 1 2 5 . . 3 1 1 4 6 6 Average Overweight (x) . | . . 1 1 1 1 1 . . . . . . . . . . . . . . . . . 5 Largest Inventory Capacity 25 | 8 15 15 15 15 20 20 20 20 20 20 5 15 15 15 25 25 15 15 15 15 15 15 25 25 Average Capacity 16 | 6 10 15 15 15 17 20 15 16 20 17 5 9 15 15 23 23 15 15 15 15 15 15 15 25 Most Carried 25 | 6 15 15 15 15 17 20 20 20 20 20 5 15 15 15 25 25 15 15 15 15 15 15 15 25 Average Carried 15 | 4 9 14 13 13 15 19 15 16 19 17 4 7 14 14 21 22 14 14 12 14 14 13 14 18 Final Capacity 25 | 8 15 15 15 15 20 20 15 20 20 5 5 15 15 15 25 15 15 15 15 15 15 15 25 25 Final Carried 25 | 6 15 13 15 15 17 20 15 20 20 5 5 14 15 15 25 15 15 14 11 15 15 13 14 19 Class Distribution -------------------- 38% | Hacker-Mutant 31% | Mutant 20% | Scavenger-Mutant 4% | Hacker-Scout Dominant Class ---------------- Mutant | -10/Materials Mutant | -10/Mines Mutant | -9/Materials Scavenger-Mutant | -9/Mines Scavenger-Mutant | -9/Exiles Mutant | -8/Mines Mutant | -8/Materials Scavenger-Mutant | -8/Storage Scavenger-Mutant | -7/Factory Scavenger-Mutant | -7/Waste Hacker-Mutant | -7/Factory Hacker-Mutant | -7/DSF Hacker-Mutant | -6/Factory Hacker-Mutant | -6/Extension Scavenger-Mutant | -6/Cetus Scavenger-Mutant | -6/Archives Hacker-Mutant | -6/Hub_04(d) Wizard-Mutant | -5/Factory Hacker-Mutant | -5/Upper Caves Hacker-Mutant | -5/Upper Caves Hacker-Scout | -5/Warlord Hacker-Mutant | -4/Proximity Caves Hacker-Mutant | -4/Factory Hacker-Mutant | -4/Armory Resources | -11 -10 -10 -9 -9 -9 -8 -8 -8 -7 -7 -7 -7 -6 -6 -6 -6 -6 -5 -5 -5 -5 -4 -4 -4 ----------- Run | Scr Mat Min Mat Min Exi Min Mat Sto Fac Was Fac DSF Fac Ext Cet Arc Hub Fac Upp Upp War Pro Fac Arm Matter Collected 4214 | 177 123 50 61 149 18 271 344 106 1 . . 246 244 423 209 369 . 20 409 84 422 180 184 124 Remotely . | . . . . . . . . . . . . . . . . . . . . . . . . . Salvage Created 6025 | . 176 204 108 98 . 312 623 381 . . . . 192 746 127 492 35 20 561 380 762 104 403 301 Parts 315 | . 10 14 8 7 . 23 48 25 . . . . 12 27 5 25 1 2 19 12 21 6 42 8 Haulers Intercepted . | . . . . . . . . . . . . . . . . . . . . . . . . . Recyclers Shooed 1 | . . . . . . . . . . . . . . . . . . . . . . . 1 . Parts Field Recycled . | . . . . . . . . . . . . . . . . . . . . . . . . . Retrieved Matter . | . . . . . . . . . . . . . . . . . . . . . . . . . Parts Self-Destructed 80 | . . . . . . . . . . . . . . . . . . . 17 3 54 6 . . Prevented 2 | . . . . . . . . . . . . . . . . . . . . . 2 . . . Kills | -11 -10 -10 -9 -9 -9 -8 -8 -8 -7 -7 -7 -7 -6 -6 -6 -6 -6 -5 -5 -5 -5 -4 -4 -4 ------- Run | Scr Mat Min Mat Min Exi Min Mat Sto Fac Was Fac DSF Fac Ext Cet Arc Hub Fac Upp Upp War Pro Fac Arm Combat Hostiles Destroyed 151 | . 7 5 5 3 . 9 20 10 . . . . 4 13 2 4 . . 9 5 24 5 15 11 Melee 27 | . . . . . . . 9 6 . . . . 1 4 2 . . . . . . . 3 2 Guns 78 | . 7 4 5 3 . 9 11 3 . . . . 3 7 . 4 . . 9 . 7 5 1 . Cannons 1 | . . . . . . . . 1 . . . . . . . . . . . . . . . . AOE 40 | . . . . . . . . . . . . . . . . . . . . 5 17 . 11 7 Classes Destroyed 19 | . 2 2 1 . . 1 3 . . . . . . 2 . . . . . 1 6 1 . . Worker 4 | . . 1 . . . . . . . . . . . . . . . . . . . . 3 . Builder 4 | . . . . . . . 1 . . . . . 1 1 . . . . . . . . 1 . Tunneler 2 | . . 1 . . . 1 . . . . . . . . . . . . . . . . . . Recycler 1 | . . . . . . . 1 . . . . . . . . . . . . . . . . . Operator 8 | . . . . . . . 1 . . . . . 1 1 . 5 . . . . . . . . Watcher 3 | . . . . . . . . . . . . . . 1 . . 1 1 . . . . . . Swarmer 65 | . 5 3 4 1 . 4 13 3 . . . . 3 3 . . . . 4 5 . 4 10 3 Saboteur 3 | . . . . . . . . . . . . . . . . . . . . . 2 . . 1 Grunt 39 | . 2 2 . 2 . 4 3 5 . . . . 1 5 2 . . . 4 . 7 . 2 . Brawler 2 | . . . . . . 1 . . . . . . . . . . . . . . 1 . . . Duelist 3 | . . . . . . . . . . . . . . . . . . . . . 1 . . 2 Protector 2 | . . . . . . . . . . . . . . . . . . . . . 2 . . . Sentry 15 | . . . 1 . . . 4 2 . . . . . 3 . 4 . . . . . . 1 . Specialist 3 | . . . . . . . . . . . . . . . . . . . . . 1 . . 2 Hunter 7 | . . . . . . . . . . . . . . 2 . . . . 1 . 2 . . 2 Programmer 9 | . . . . . . . . . . . . . . . . . . . . . 6 . 2 1 Behemoth 1 | . . . . . . . . . . . . . . . . . . . . . . 1 . . Striker 2 | . . . . . . . . . . . . . . . . . . . . . 2 . . . Decomposer 4 | . . . . . . . . . . . . . . . . . . . . 4 . . . . Packrat 2 | . . . . . . . . . . . . . . . . . . . . 2 . . . . Samaritan 1 | . . . . . . . . . . . . . . . . . . . . 1 . . . . Best Kill Streak 13 | . 3 3 4 2 . 3 5 5 . . . . 4 3 2 4 1 1 4 5 13 5 9 3 Combat Bots Only 13 | . 3 3 4 2 . 3 5 5 . . . . 3 3 2 1 . . 4 5 13 5 8 3 Max Kills in Single Turn 7 | . 1 1 2 1 . 1 2 1 . . . . 2 1 1 1 1 1 3 3 7 2 6 2 Gunslinging 1 | . . . 1 . . . 1 . . . . . . . . . . . 1 . . 1 . . Exploded 7 | . . . . . . . . . . . . . . . . . . . . 3 7 . 6 2 Melee 1 | . . . . . . . 1 1 . . . . 1 1 1 . . . . . . . 1 1 Uniques/NPCs Destroyed . | . . . . . . . . . . . . . . . . . . . . . . . . . Combat | -11 -10 -10 -9 -9 -9 -8 -8 -8 -7 -7 -7 -7 -6 -6 -6 -6 -6 -5 -5 -5 -5 -4 -4 -4 -------- Run | Scr Mat Min Mat Min Exi Min Mat Sto Fac Was Fac DSF Fac Ext Cet Arc Hub Fac Upp Upp War Pro Fac Arm Damage Taken 13695 | . 184 242 188 859 . 704 985 432 . 184 . . 292 1714 927 455 210 190 1073 132 297 1055 1402 2170 Core 2449 | . 43 41 28 138 . 61 90 31 . . . . 29 374 93 26 5 20 128 27 32 121 475 687 Absorbed by Shields 964 | . . . . . . . . . . . . . . 50 . . . . . . 284 583 47 . Redirected to Shielding 40 | . . . . . . . . . . . . . . . 23 17 . . . . . . . . Core Remaining (%) 70 | 100 . 66 . . . 43 . 78 . . . 100 . . . . 38 . . . . 67 . . Volleys Fired 332 | . 19 12 9 14 . 36 32 12 . . . . 9 21 10 23 1 . 27 5 45 28 15 14 Largest 2 | . 2 2 2 2 . 2 2 2 . . . . 2 2 1 2 1 . 2 1 1 2 1 1 Hottest 240 | . 80 80 60 79 . 98 108 79 . . . . 60 60 240 68 35 . 240 39 39 113 240 120 Shots Fired 550 | . 38 23 18 27 . 75 62 17 . . . . 18 42 10 46 1 . 44 5 45 50 15 14 Gun 504 | . 38 23 18 27 . 75 62 12 . . . . 18 42 10 46 1 . 44 . 33 50 5 . Cannon 14 | . . . . . . . . 5 . . . . . . . . . . . . . . . 9 Launcher 32 | . . . . . . . . . . . . . . . . . . . . 5 12 . 10 5 Special . | . . . . . . . . . . . . . . . . . . . . . . . . . Kinetic 305 | . . . 14 24 . 56 12 7 . . . . 18 42 6 46 1 . 35 . 33 11 . . Thermal 99 | . . . . 3 . 19 30 10 . . . . . . 4 . . . 9 . . 10 5 9 Explosive 25 | . . . . . . . . . . . . . . . . . . . . 5 9 . 10 1 Electromagnetic 85 | . 38 23 4 . . . 20 . . . . . . . . . . . . . . . . . Entropic 36 | . . . . . . . . . . . . . . . . . . . . . 3 29 . 4 Robot Hit Streak 21 | . 4 11 9 14 . 12 8 6 . . . . 3 16 21 11 . . 10 4 11 21 3 8 Robot Miss Streak 4 | . 4 2 2 4 . 4 3 1 . . . . 3 2 2 2 . . 2 . 2 3 3 3 Penetration Max 1 | . . . . . . . . . . . . . . 1 . 1 . . 1 . . . . . Secondary Targets 14 | . 2 1 1 . . 1 5 . . . . . . . . . . . 2 . . 2 . . Max Gunslinging Chain 1 | . 1 1 1 . . 1 1 . . . . . . . . . . . 1 . . 1 . . Shots Hit Robots 474 | . 15 16 14 15 . 48 60 30 . . . . 10 69 19 38 1 2 29 11 29 39 13 16 Core Hits 264 | . 7 8 6 8 . 24 26 12 . . . . 6 15 9 12 1 1 15 12 42 7 38 15 Critical Kills 8 | . . . . . . . . . . . . . 1 1 . 3 . . 2 . . . . 1 Critical Parts Destroyed 6 | . . . . . . . 1 . . . . . . 2 . 1 . . 1 . 1 . . . Critical Strikes 24 | . . . . . . . 6 2 . . . . 1 5 1 4 . . 3 . 1 . . 1 Burn 4 | . . . . . . . 3 1 . . . . . . . . . . . . . . . . Meltdown 1 | . . . . . . . . . . . . . . . . . . . . . . . . 1 Destroy 12 | . . . . . . . 1 . . . . . 1 2 . 4 . . 3 . 1 . . . Smash 1 | . . . . . . . . . . . . . . 1 . . . . . . . . . . Sever 6 | . . . . . . . 2 1 . . . . . 2 1 . . . . . . . . . Melee Attacks 212 | . . . . . . . 35 23 2 . . . 21 45 15 4 11 5 7 8 . 2 25 9 Impact 19 | . . . . . . . . . . . . . 7 12 . . . . . . . . . . Slashing 182 | . . . . . . . 35 23 2 . . . 14 23 15 4 11 5 7 8 . 2 25 8 Piercing 1 | . . . . . . . . . . . . . . . . . . . . . . . . 1 Sneak Attacks 33 | . . . . . . . 2 1 . . . . . 15 . 4 . . 1 8 . . 2 . Combat Hostiles 4 | . . . . . . . . . . . . . . 3 . . . . 1 . . . . . Follow-up Attacks 8 | . . . . . . . 3 1 . . . . . 4 . . . . . . . . . . Damage Inflicted 21651 | . 185 321 191 225 . 573 1616 818 . . . . 323 2137 822 1317 54 101 1154 1227 4228 1815 2198 2346 Guns 7462 | . 185 211 191 225 . 573 537 129 . . . . 169 668 301 882 . . 748 . 689 1815 139 . Cannons 441 | . . . . . . . . 81 . . . . . . . . . . . . . . . 360 Explosions 7413 | . . 110 . . . . . . . . . . . . . . 1 . . 441 3539 . 1542 1780 Melee 6309 | . . . . . . . 1063 605 . . . . 154 1469 521 435 53 101 406 786 . . 517 199 Ramming 26 | . . . . . . . 16 3 . . . . . . . . . . . . . . . 7 Kinetic 4136 | . . . 165 210 . 350 76 86 . . . . 169 668 63 882 . . 618 . 689 160 . . Thermal 1814 | . . 110 . 15 . 223 285 124 . . . . . . 238 . . . 130 . . 190 139 360 Explosive 3173 | . . . . . . . . . . . . . . . . . . . . 441 806 . 1542 384 Electromagnetic 599 | . 185 211 26 . . . 176 . . . . . . . . . 1 . . . . . . . Impact 515 | . . . . . . . . . . . . . 67 448 . . . . . . . . . . Slashing 5763 | . . . . . . . 1063 605 . . . . 87 1021 521 435 53 101 406 786 . . 517 168 Piercing 31 | . . . . . . . . . . . . . . . . . . . . . . . . 31 Entropic 5594 | . . . . . . . . . . . . . . . . . . . . . 2733 1465 . 1396 Highest Corruption 10 | . . . . 3 3 3 . 1 . 10 10 5 . . . . 3 . . . 2 2 2 10 Average Corruption 2 | . . . . 3 3 3 . 1 . 5 8 5 . . . . 2 . . . 1 2 1 3 Corruption Purged 6 | . . . . . . . . . . . 5 . . . . . . . . . 1 . . . Corruption Blocked . | . . . . . . . . . . . . . . . . . . . . . . . . . Effects 85 | . . . . 4 11 30 . 4 . 5 2 4 . . . . . . . . 6 9 2 8 Message Errors 22 | . . . . 1 7 6 . 1 . 1 . 1 . . . . . . . . . 1 . 4 Matter Fused 18 | . . . . 2 1 6 . 1 . . 1 . . . . . . . . . 1 4 1 1 Heat Flow Errors 8 | . . . . 1 . 2 . 1 . . . . . . . . . . . . 1 2 . 1 Energy Discharges 10 | . . . . . . 4 . 1 . 3 . . . . . . . . . . 1 1 . . Parts Rejected 3 | . . . . . . 1 . . . . . . . . . . . . . . 1 . . 1 Data Loss (minor) 14 | . . . . . 2 7 . . . . 1 2 . . . . . . . . . 1 . 1 Data Loss (major) 1 | . . . . . 1 . . . . . . . . . . . . . . . . . . . Misfires 5 | . . . . . . 4 . . . . . . . . . . . . . . 1 . . . Alerts 2 | . . . . . . . . . . . . 1 . . . . . . . . . . 1 . Misdirections 1 | . . . . . . . . . . 1 . . . . . . . . . . . . . . Weapon Failures 1 | . . . . . . . . . . . . . . . . . . . . . 1 . . . Overload Shots 7 | . . . . . . . . . . . . . . . 4 . . . 1 . . . 2 . Effects 2 | . . . . . . . . . . . . . . . 1 . . . . . . . 1 . Energy Bleed 1 | . . . . . . . . . . . . . . . 1 . . . . . . . . . Heat Surge 1 | . . . . . . . . . . . . . . . . . . . . . . . 1 . Overflow Damage 1675 | . . 15 . . . . 86 33 . . . . 17 277 3 154 . 9 314 295 197 . 119 156 Projectiles . | . . . . . . . . . . . . . . . . . . . . . . . . . Explosions 396 | . . 15 . . . . . . . . . . . . . . . . . 7 197 . 21 156 Melee 1279 | . . . . . . . 86 33 . . . . 17 277 3 154 . 9 314 288 . . 98 . Knockbacks 3 | . . . . . . . . . . . . . . 3 . . . . . . . . . . Impact 3 | . . . . . . . . . . . . . . 3 . . . . . . . . . . Kinetic . | . . . . . . . . . . . . . . . . . . . . . . . . . Secondary . | . . . . . . . . . . . . . . . . . . . . . . . . . Self-Inflicted Damage 295 | . . 77 . . . . . . . . . . . . . . 100 . . 60 . . . 58 Shots 7 | . . 2 . . . . . . . . . . . . . . 1 . . 3 . . . 1 Rammed 2 | . . . . . . . . 1 . . . . . . . . . . . . . . . 1 Targets Rammed 5 | . . . . . . . 3 1 . . . . . . . . . . . . . . . 1 Kicked 3 | . . . . . . . 3 . . . . . . . . . . . . . . . . . Crushed . | . . . . . . . . . . . . . . . . . . . . . . . . . Highest Temperature 438 | . 108 151 28 256 . 258 438 206 . . . . . . 331 9 . 11 206 . 263 202 357 270 Average Temperature 86 | . 42 57 12 57 . 86 133 80 . . . . . . 165 6 . 11 85 . 99 68 49 123 Received Heat Transfer 2497 | . 18 84 81 87 . 261 216 198 . . . . 27 432 321 36 12 69 300 . 19 75 261 . Effects 10 | . . . . . . 2 7 . . . . . . . . . . . . . . . 1 . Shutdowns 1 | . . . . . . . 1 . . . . . . . . . . . . . . . . . Energy Bleed 3 | . . . . . . . 3 . . . . . . . . . . . . . . . . . Interference 4 | . . . . . . 2 2 . . . . . . . . . . . . . . . . . Matter Decay 1 | . . . . . . . 1 . . . . . . . . . . . . . . . . . Short Circuit 1 | . . . . . . . . . . . . . . . . . . . . . . . 1 . Siege Activations . | . . . . . . . . . . . . . . . . . . . . . . . . . Robots Corrupted 1 | . . 1 . . . . . . . . . . . . . . . . . . . . . . Combat Hostiles 1 | . . 1 . . . . . . . . . . . . . . . . . . . . . . Parts Fried 4 | . . . . . . . . . . . . . 2 2 . . . . . . . . . . Impact Corruptions 10 | . . . . . . . . . . . . . 2 8 . . . . . . . . . . Robots Melted 2 | . . . . . . . . . . . . . . . . . . . . . . . . 2 Combat Hostiles 2 | . . . . . . . . . . . . . . . . . . . . . . . . 2 Parts Melted 11 | . . . . . . 1 3 2 . . . . . 1 . . . . 1 . . . . 3 Heat Transferred 2543 | . . 100 . 37 . 407 851 333 . . . . . . 200 . . . 148 . . 185 100 182 Parts Sabotaged . | . . . . . . . . . . . . . . . . . . . . . . . . . Parts Stolen . | . . . . . . . . . . . . . . . . . . . . . . . . . Parts Stripped . | . . . . . . . . . . . . . . . . . . . . . . . . . Power Chain Reactions 2 | . . 2 . . . . . . . . . . . . . . . . . . . . . . Missiles Intercepted . | . . . . . . . . . . . . . . . . . . . . . . . . . Alert | -11 -10 -10 -9 -9 -9 -8 -8 -8 -7 -7 -7 -7 -6 -6 -6 -6 -6 -5 -5 -5 -5 -4 -4 -4 ------- Run | Scr Mat Min Mat Min Exi Min Mat Sto Fac Was Fac DSF Fac Ext Cet Arc Hub Fac Upp Upp War Pro Fac Arm Peak Influence 512 | . 192 123 90 76 . 148 359 488 146 47 4 2 223 302 242 182 112 225 . . . . 376 512 Initial 168 | . . 25 . 13 . . . 144 146 47 . 2 . 109 168 16 1 54 . . . . . 53 Average 119 | . 117 47 19 32 . 56 177 318 142 27 2 2 116 198 187 130 30 145 . . . . 130 230 Maximum Alert Level 2 | . . . . . . . 1 2 . . . . 1 1 1 . . 1 . . . . 1 2 Low Security (%) 78 | 100 100 100 100 100 . 100 49 6 100 100 100 100 93 42 66 100 100 90 . . . . 69 37 Level 1 19 | . . . . . . . 50 77 . . . . 6 57 33 . . 9 . . . . 30 49 Level 2 1 | . . . . . . . . 15 . . . . . . . . . . . . . . . 13 Level 3 . | . . . . . . . . . . . . . . . . . . . . . . . . . Level 4 . | . . . . . . . . . . . . . . . . . . . . . . . . . Level 5 . | . . . . . . . . . . . . . . . . . . . . . . . . . High Security . | . . . . . . . . . . . . . . . . . . . . . . . . . Max Security . | . . . . . . . . . . . . . . . . . . . . . . . . . Squads Dispatched 21 | . 1 . . . . . 1 2 1 . . 1 1 4 . . 1 3 . . . . 5 1 Investigation 5 | . . . . . . . . 1 . . . . . 1 . . . 2 . . . . 1 . Extermination 3 | . . . . . . . . . . . . . . . . . . 1 . . . . 1 1 Reinforcement 13 | . 1 . . . . . 1 1 1 . . 1 1 3 . . 1 . . . . . 3 . Assault . | . . . . . . . . . . . . . . . . . . . . . . . . . Garrison . | . . . . . . . . . . . . . . . . . . . . . . . . . Intercept . | . . . . . . . . . . . . . . . . . . . . . . . . . Searches Triggered . | . . . . . . . . . . . . . . . . . . . . . . . . . Construction Impeded 3 | . . . . . . . . . . . . . . 1 . . . . . . . . 2 . Haulers Reinforced . | . . . . . . . . . . . . . . . . . . . . . . . . . Active Scanning Responses . | . . . . . . . . . . . . . . . . . . . . . . . . . Cargo Convoy Interrupts . | . . . . . . . . . . . . . . . . . . . . . . . . . Stealth | -11 -10 -10 -9 -9 -9 -8 -8 -8 -7 -7 -7 -7 -6 -6 -6 -6 -6 -5 -5 -5 -5 -4 -4 -4 --------- Run | Scr Mat Min Mat Min Exi Min Mat Sto Fac Was Fac DSF Fac Ext Cet Arc Hub Fac Upp Upp War Pro Fac Arm Distress Signals 12 | . 1 . . . . . 3 . . . . . . 2 1 . 3 1 . . . . 1 . Communications Jammed 39 | . . . . . . . . . . . . . . . . . . . . . . . 36 3 Distress Signals 39 | . . . . . . . . . . . . . . . . . . . . . . . 36 3 Times Spotted 289 | . 13 5 10 7 . 13 32 13 . 6 . 1 9 34 9 10 9 10 10 5 34 6 28 25 Peak Tracking Total 12 | . 4 3 5 3 . 4 7 5 . 6 . 1 4 6 5 1 12 5 4 5 7 5 8 6 Tactical Retreats 21 | . 1 . . . . 1 2 1 . . . . . 3 2 . . 1 . . . . 4 6 Traps | -11 -10 -10 -9 -9 -9 -8 -8 -8 -7 -7 -7 -7 -6 -6 -6 -6 -6 -5 -5 -5 -5 -4 -4 -4 ------- Run | Scr Mat Min Mat Min Exi Min Mat Sto Fac Was Fac DSF Fac Ext Cet Arc Hub Fac Upp Upp War Pro Fac Arm Traps Triggered 7 | . 1 . . . . . . 2 1 . . . . 2 . . . . . . . . 1 . Indirectly . | . . . . . . . . . . . . . . . . . . . . . . . . . Trap Hack Attempts . | . . . . . . . . . . . . . . . . . . . . . . . . . Triggered . | . . . . . . . . . . . . . . . . . . . . . . . . . Disarmed 18 | . . . . . . . . . . . . . . . . . 12 6 . . . . . . Reprogrammed . | . . . . . . . . . . . . . . . . . . . . . . . . . Reused . | . . . . . . . . . . . . . . . . . . . . . . . . . Traps Extracted . | . . . . . . . . . . . . . . . . . . . . . . . . . Installed . | . . . . . . . . . . . . . . . . . . . . . . . . . Triggered 9 | . . . . . . . . . . . . . . . . . . . . . 9 . . . Machines | -11 -10 -10 -9 -9 -9 -8 -8 -8 -7 -7 -7 -7 -6 -6 -6 -6 -6 -5 -5 -5 -5 -4 -4 -4 ---------- Run | Scr Mat Min Mat Min Exi Min Mat Sto Fac Was Fac DSF Fac Ext Cet Arc Hub Fac Upp Upp War Pro Fac Arm Machines Disabled 23 | . . . . 2 . . . 2 . . . . 1 4 2 4 1 1 . . . . 5 1 Max in Single Turn 2 | . . . . 1 . . . 1 . . . . 1 1 1 1 1 1 . . . . 2 1 Garrison Access 1 | . . . . . . . . . . . . . . . . . . . . . . . 1 . Network Hub 1 | . . . . . . . . . . . . . . . . . 1 . . . . . . . Machines Sabotaged . | . . . . . . . . . . . . . . . . . . . . . . . . . Garrisons Compromised . | . . . . . . . . . . . . . . . . . . . . . . . . . Overloaded Fab Kills . | . . . . . . . . . . . . . . . . . . . . . . . . . Hacking | -11 -10 -10 -9 -9 -9 -8 -8 -8 -7 -7 -7 -7 -6 -6 -6 -6 -6 -5 -5 -5 -5 -4 -4 -4 --------- Run | Scr Mat Min Mat Min Exi Min Mat Sto Fac Was Fac DSF Fac Ext Cet Arc Hub Fac Upp Upp War Pro Fac Arm Machines Accessed 53 | . 2 2 3 . . . 2 4 . . 1 . 4 10 2 1 8 5 1 . 1 . 7 . Terminals 42 | . 2 2 3 . . . 2 3 . . 1 . 1 10 2 . 8 3 1 . . . 4 . Fabricators 5 | . . . . . . . . . . . . . 2 . . . . 2 . . . . 1 . Repair Stations 1 | . . . . . . . . . . . . . 1 . . . . . . . . . . . Recycling Units 2 | . . . . . . . . 1 . . . . . . . . . . . . . . 1 . Scanalyzers . | . . . . . . . . . . . . . . . . . . . . . . . . . Garrison Access 1 | . . . . . . . . . . . . . . . . . . . . . . . 1 . Total Hacks 227 | . 9 5 6 . . . 8 8 . . 1 . 10 37 3 1 53 54 1 . 1 . 30 . Successful 148 | . 5 3 5 . . . 2 7 . . 1 . 7 26 3 1 39 30 1 . 1 . 17 . Failed 77 | . 4 2 1 . . . 6 1 . . . . 3 10 . . 14 23 . . . . 13 . Catastrophic 3 | . . . . . . . 1 . . . . . . 1 . . 1 . . . . . . . Database Lockouts 2 | . . . . . . . . . . . . . . 1 . . . 1 . . . . . . Manual 125 | . 4 . 3 . . . 3 3 . . . . 5 23 . . 30 38 . . . . 16 . Terminals 201 | . 9 5 6 . . . 8 5 . . 1 . 5 37 3 . 53 47 1 . . . 21 . Fabricators 13 | . . . . . . . . . . . . . 4 . . . . 7 . . . . 2 . Repair Stations 1 | . . . . . . . . . . . . . 1 . . . . . . . . . . . Recycling Units 5 | . . . . . . . . 3 . . . . . . . . . . . . . . 2 . Scanalyzers . | . . . . . . . . . . . . . . . . . . . . . . . . . Garrison Access 5 | . . . . . . . . . . . . . . . . . . . . . . . 5 . Terminal Hacks 96 | . 3 3 3 . . . 2 3 . . 1 . 2 20 3 1 26 18 1 . 1 . 9 . Record 12 | . . 3 . . . . . . . . . . 1 . 2 1 2 2 1 . . . . . Part Schematic 5 | . . . . . . . . . . . . . . 1 . . 1 3 . . . . . . Robot Analysis 8 | . 1 . . . . . . . . . . . . 3 . . 3 1 . . . . . . Prototype ID Bank 11 | . . . 2 . . . . 1 . . . . . 4 . . 2 . . . . . 2 . Open Door 8 | . . . . . . . . 2 . . . . . 4 1 . . . . . 1 . . . Open DSF 1 | . . . . . . . . . . . 1 . . . . . . . . . . . . . Level Access Points 1 | . . . . . . . . . . . . . . . . . 1 . . . . . . . Branch Access Points 5 | . 1 . . . . . 1 . . . . . 1 . . . . 1 . . . . 1 . Emergency Access Points 1 | . . . . . . . . . . . . . . . . . 1 . . . . . . . Machine Index 1 | . . . . . . . . . . . . . . . . . . 1 . . . . . . Terminal Index 3 | . . . . . . . . . . . . . . 1 . . 1 1 . . . . . . Fabricator Index 2 | . . . . . . . . . . . . . . . . . . 1 . . . . 1 . Alert Level 3 | . . . . . . . 1 . . . . . . . . . 1 1 . . . . . . Unreport Threat 6 | . . . 1 . . . . . . . . . . 3 . . 1 . . . . . 1 . Locate Traps 3 | . . . . . . . . . . . . . . . . . 2 1 . . . . . . Disarm Traps 5 | . . . . . . . . . . . . . . . . . 4 1 . . . . . . Security Status 1 | . . . . . . . . . . . . . . . . . . 1 . . . . . . Patrol Status 1 | . . . . . . . . . . . . . . . . . . 1 . . . . . . Recall Investigation 2 | . . . . . . . . . . . . . . . . . . 1 . . . . 1 . Recall Reinforcements 3 | . . . . . . . . . . . . . . 2 . . . . . . . . 1 . Registered Components 2 | . . . . . . . . . . . . . . . . . . 1 . . . . 1 . Zone Layout 12 | . 1 . . . . . . . . . . . . 2 . . 7 1 . . . . 1 . Fabricator Hacks 8 | . . . . . . . . . . . . . 1 . . . . 5 . . . . 2 . Network Status 2 | . . . . . . . . . . . . . 1 . . . . 1 . . . . . . Load Schematic 3 | . . . . . . . . . . . . . . . . . . 2 . . . . 1 . Build 3 | . . . . . . . . . . . . . . . . . . 2 . . . . 1 . Repair Station Hacks . | . . . . . . . . . . . . . . . . . . . . . . . . . Recycling Unit Hacks 4 | . . . . . . . . 2 . . . . . . . . . . . . . . 2 . Report Inventory 2 | . . . . . . . . 1 . . . . . . . . . . . . . . 1 . Retrieve Matter 1 | . . . . . . . . . . . . . . . . . . . . . . . 1 . Retrieve Components 1 | . . . . . . . . 1 . . . . . . . . . . . . . . . . Scanalyzer . | . . . . . . . . . . . . . . . . . . . . . . . . . Garrison Access Hacks 1 | . . . . . . . . . . . . . . . . . . . . . . . 1 . Seal Access 1 | . . . . . . . . . . . . . . . . . . . . . . . 1 . Unauthorized Hacks 39 | . 2 . 2 . . . . 2 . . . . 4 6 . . 13 7 . . . . 3 . Terminals 34 | . 2 . 2 . . . . 1 . . . . . 6 . . 13 7 . . . . 3 . Track 12 | . . . . . . . . . . . . . . 2 . . 7 2 . . . . 1 . Botnet 14 | . 2 . 2 . . . . 1 . . . . . 1 . . 3 3 . . . . 2 . Disrupt 8 | . . . . . . . . . . . . . . 3 . . 3 2 . . . . . . Fabricators 3 | . . . . . . . . . . . . . 3 . . . . . . . . . . . Report 1 | . . . . . . . . . . . . . 1 . . . . . . . . . . . Prioritize 1 | . . . . . . . . . . . . . 1 . . . . . . . . . . . Haulers 1 | . . . . . . . . . . . . . 1 . . . . . . . . . . . Repair Stations 1 | . . . . . . . . . . . . . 1 . . . . . . . . . . . Mechanics 1 | . . . . . . . . . . . . . 1 . . . . . . . . . . . Recycling Units 1 | . . . . . . . . 1 . . . . . . . . . . . . . . . . Tunnel 1 | . . . . . . . . 1 . . . . . . . . . . . . . . . . Scanalyzers . | . . . . . . . . . . . . . . . . . . . . . . . . . Garrison Access . | . . . . . . . . . . . . . . . . . . . . . . . . . Data Cores Recovered 1 | . . . . . . . 1 . . . . . . . . . . . . . . . . . Used . | . . . . . . . . . . . . . . . . . . . . . . . . . Hacking Detections 36 | . 2 2 3 . . . 2 2 . . . . 2 5 1 . 8 5 . . . . 4 . Full Trace Events 3 | . . . . . . . . . . . . . . . . . . 2 . . . . 1 . Feedback Events . | . . . . . . . . . . . . . . . . . . . . . . . . . Feedback Blocked . | . . . . . . . . . . . . . . . . . . . . . . . . . Robot Schematics Acquired . | . . . . . . . . . . . . . . . . . . . . . . . . . Robots Built . | . . . . . . . . . . . . . . . . . . . . . . . . . Authchips . | . . . . . . . . . . . . . . . . . . . . . . . . . Time . | . . . . . . . . . . . . . . . . . . . . . . . . . Total Robot Build Rating . | . . . . . . . . . . . . . . . . . . . . . . . . . Part Schematics Acquired 4 | . . . . . . . . . . . . . . 1 . . 1 2 . . . . . . Parts Built 5 | . . . . . . . . . . . . . . . . . . 3 . . . . 2 . Authchips . | . . . . . . . . . . . . . . . . . . . . . . . . . Time 189 | . . . . . . . . . . . . . . . . . . 94 . . . . 95 . Total Part Build Rating 25 | . . . . . . . . . . . . . . . . . . 15 . . . . 10 . Parts Repaired . | . . . . . . . . . . . . . . . . . . . . . . . . . Time . | . . . . . . . . . . . . . . . . . . . . . . . . . Parts Recycled . | . . . . . . . . . . . . . . . . . . . . . . . . . Recycled Matter . | . . . . . . . . . . . . . . . . . . . . . . . . . Retrieved Matter . | . . . . . . . . . . . . . . . . . . . . . . . . . Retrieved Components 1 | . . . . . . . . 1 . . . . . . . . . . . . . . . . Parts Scanalyzed . | . . . . . . . . . . . . . . . . . . . . . . . . . Part Schematics Acquired . | . . . . . . . . . . . . . . . . . . . . . . . . . Parts Damaged . | . . . . . . . . . . . . . . . . . . . . . . . . . Bothacking | -11 -10 -10 -9 -9 -9 -8 -8 -8 -7 -7 -7 -7 -6 -6 -6 -6 -6 -5 -5 -5 -5 -4 -4 -4 ------------ Run | Scr Mat Min Mat Min Exi Min Mat Sto Fac Was Fac DSF Fac Ext Cet Arc Hub Fac Upp Upp War Pro Fac Arm Used RIF Installer . | . . . . . . . . . . . . . . . . . . . . . . . . . Robots Hacked . | . . . . . . . . . . . . . . . . . . . . . . . . . Non-combat . | . . . . . . . . . . . . . . . . . . . . . . . . . Combat . | . . . . . . . . . . . . . . . . . . . . . . . . . Robot Hacks Applied . | . . . . . . . . . . . . . . . . . . . . . . . . . Relay Couplers Released . | . . . . . . . . . . . . . . . . . . . . . . . . . Fabnet Peak Effective % . | . . . . . . . . . . . . . . . . . . . . . . . . . Robots Rewired 18 | . . . . . . . . . . . . . . 13 . . . . . . 5 . . . Allies Hacked . | . . . . . . . . . . . . . . . . . . . . . . . . . Hacks Repelled . | . . . . . . . . . . . . . . . . . . . . . . . . . Allies | -11 -10 -10 -9 -9 -9 -8 -8 -8 -7 -7 -7 -7 -6 -6 -6 -6 -6 -5 -5 -5 -5 -4 -4 -4 -------- Run | Scr Mat Min Mat Min Exi Min Mat Sto Fac Was Fac DSF Fac Ext Cet Arc Hub Fac Upp Upp War Pro Fac Arm Total Allies 25 | . . . . 3 . . . . . . . . . 17 . . . . . . 5 . . . Largest Group 10 | . . . . 3 1 1 . . . . . . . 10 4 . . . . . 5 1 1 . Highest-Rated Group 281 | . . . . 40 16 16 . . . . . . . 281 99 . . . . . 242 65 65 . Highest-Rated Ally 159 | . . . . 16 16 16 . . . . . . . 159 39 . . . . . 65 65 65 . Total Orders 27 | . . . . . . . . 4 4 9 . . . . . . . . . . . 10 . . STAY 5 | . . . . . . . . . . 2 . . . . . . . . . . . 3 . . FOLLOW 1 | . . . . . . . . . . . . . . . . . . . . . . 1 . . EXPLORE 16 | . . . . . . . . 2 4 6 . . . . . . . . . . . 4 . . RETURN 5 | . . . . . . . . 2 . 1 . . . . . . . . . . . 2 . . Ally Attacks 158 | . . . . 9 . 12 . . . . . . . 101 17 . . . . . 19 . . . Total Damage 3499 | . . . . 90 . 93 . . . . . . . 2315 317 . . . . . 684 . . . Kills 32 | . . . . 2 . 3 . . . . . . . 16 5 . . . . . 6 . . . Allies Corrupted 1 | . . . . . . . . . . . . . . . . . . . . . 1 . . . Allies Melted . | . . . . . . . . . . . . . . . . . . . . . . . . . Intel | -11 -10 -10 -9 -9 -9 -8 -8 -8 -7 -7 -7 -7 -6 -6 -6 -6 -6 -5 -5 -5 -5 -4 -4 -4 ------- Run | Scr Mat Min Mat Min Exi Min Mat Sto Fac Was Fac DSF Fac Ext Cet Arc Hub Fac Upp Upp War Pro Fac Arm Robot Analysis Total 8 | . 1 . . . . . . . . . . . . 3 . . 3 1 . . . . . . Derelict Logs Recovered 6 | . . 1 . . . . . . . . . . . . . . . . 2 2 . 1 . . Drone Launches 13 | . . . . . . . . 2 4 5 . . . . . . . . . . . 2 . . Drone Recoveries 5 | . . . . . . . . 2 . 1 . . . . . . . . . . . 2 . . Exploration | -11 -10 -10 -9 -9 -9 -8 -8 -8 -7 -7 -7 -7 -6 -6 -6 -6 -6 -5 -5 -5 -5 -4 -4 -4 ------------- Run | Scr Mat Min Mat Min Exi Min Mat Sto Fac Was Fac DSF Fac Ext Cet Arc Hub Fac Upp Upp War Pro Fac Arm Turns Passed 13212 | 72 500 1009 294 786 688 1508 685 614 152 134 69 97 345 683 420 424 126 273 1430 627 527 456 855 438 Spaces Moved 8488 | 48 287 492 135 379 292 575 305 271 82 95 76 120 351 594 173 158 180 458 859 779 577 262 771 169 Core 146 | 5 . . . . . . . . . 37 76 28 . . . . . . . . . . . . Treads 1492 | . . . . . 132 575 89 243 82 58 . . . . 55 65 . . 125 . . 56 . 12 Legs 1840 | 43 287 492 135 379 160 . 216 28 . . . . . . 69 30 . . 1 . . . . . Wheels 239 | . . . . . . . . . . . . . . . . . . . . 3 . 2 77 157 Hover 4771 | . . . . . . . . . . . . 92 351 594 49 63 180 458 733 776 577 204 694 . Flight . | . . . . . . . . . . . . . . . . . . . . . . . . . Fastest Speed 40 | 50 120 190 190 190 190 240 130 130 162 50 50 50 56 56 52 52 52 52 52 52 52 105 40 190 Average Speed 118 | 112 143 190 190 190 232 240 138 160 162 118 50 61 56 58 177 179 52 52 97 52 64 118 82 202 Slowest Speed 560 | 120 190 260 190 190 330 240 160 240 162 163 50 100 56 106 320 560 52 52 330 95 125 160 210 225 Overloaded Moves . | . . . . . . . . . . . . . . . . . . . . . . . . . Propulsion Burnouts . | . . . . . . . . . . . . . . . . . . . . . . . . . Robots Hopped . | . . . . . . . . . . . . . . . . . . . . . . . . . Cave-ins Triggered 1 | . . . . 1 . . . . . . . . . . . . . . . . . . . . Exploration Rate (%) 50 | 3 45 96 21 69 62 99 35 47 11 92 3 78 11 72 69 89 34 13 80 72 76 54 19 14 Regions Visited 24 Branch Regions 14 Pre-discovered Areas 3 | . . . . 1 . . . 1 . . . . . . . . . . . 1 . . . . Known Exits Taken 13 | . 1 . 1 . . 1 1 . . . 1 . 1 . . . 1 1 1 1 1 1 1 . Unknown Exits Taken 8 | 1 . 1 . 1 1 . . 1 . . . . . 1 1 1 . . . . . . . . Scrap Searched 12 | . . 3 . . . 1 . . . . . . . . . . . . 2 3 . 3 . . Spaces Dug 86 | . . . . . . . 2 . 1 . . . 15 1 . . 10 2 2 8 . 2 27 16 Terrain Destroyed 609 | . . 15 . . . . 2 . 1 . . . 15 5 . 7 193 2 12 29 112 7 72 137 Melee 47 | . . . . . . . 2 . 1 . . . 15 1 . . 10 2 2 . . 2 11 1 Projectile 28 | . . . . . . . . . . . . . . 4 . 7 . . 10 . 1 5 1 . AOE 534 | . . 15 . . . . . . . . . . . . . . 183 . . 29 111 . 60 136 Terrain Rammed . | . . . . . . . . . . . . . . . . . . . . . . . . . Walls Destroyed . | . . . . . . . . . . . . . . . . . . . . . . . . . Machines Disabled . | . . . . . . . . . . . . . . . . . . . . . . . . . Actions | -11 -10 -10 -9 -9 -9 -8 -8 -8 -7 -7 -7 -7 -6 -6 -6 -6 -6 -5 -5 -5 -5 -4 -4 -4 --------- Run | Scr Mat Min Mat Min Exi Min Mat Sto Fac Was Fac DSF Fac Ext Cet Arc Hub Fac Upp Upp War Pro Fac Arm Total 10833 | 63 338 544 156 420 303 644 455 398 100 115 106 144 442 827 254 252 195 483 1391 981 686 355 940 241 Wait 1054 | 3 13 28 4 9 . . 20 23 2 18 26 . 34 90 7 13 . 9 467 165 11 30 71 11 Move 8465 | 47 286 491 134 378 291 574 304 270 82 94 75 119 350 593 172 157 179 457 858 778 576 261 770 169 Hop . | . . . . . . . . . . . . . . . . . . . . . . . . . Pick Up 209 | 7 11 3 5 5 4 13 18 22 4 . 1 11 8 9 18 6 1 2 4 10 8 11 13 15 Fast Attach 92 | 5 2 1 1 2 2 3 4 8 3 . 1 5 6 14 5 11 . 3 2 3 . 2 7 2 Attach 116 | 1 . 3 3 5 2 4 8 2 2 1 2 2 1 4 12 5 1 3 11 3 6 14 9 12 Detach 29 | . . . . . . . . 1 . . 1 . . 1 5 4 1 . 4 . 2 . 5 5 Swap 93 | . 3 2 . 3 1 4 13 13 . 1 . . 5 7 4 5 . 2 9 3 4 3 11 . Drop 173 | . 4 4 . 4 3 10 23 25 5 1 . 7 9 13 6 24 1 2 2 6 3 4 14 3 Fire 332 | . 19 12 9 14 . 36 32 12 . . . . 9 21 10 23 1 . 27 5 45 28 15 14 Melee 200 | . . . . . . . 30 21 2 . . . 20 41 15 4 11 5 7 8 . 2 25 9 Ram . | . . . . . . . . . . . . . . . . . . . . . . . . . Kick 3 | . . . . . . . 3 . . . . . . . . . . . . . . . . . Crush 2 | . . . . . . . . 1 . . . . . . . . . . . . . . . 1 Escape Stasis 13 | . . . . . . . . . . . . . . 13 . . . . . . . . . . Rewire 52 | . . . . . . . . . . . . . . 21 . . . . . . 31 . . . Trap . | . . . . . . . . . . . . . . . . . . . . . . . . . Miscellaneous . | . . . . . . . . . . . . . . . . . . . . . . . . . Route ------- -11/Scrapyard -10/Materials (discovered 2 exits: *Mat / *Min) -10/Mines (discovered 2 exits: *Mat x2) -9/Materials (discovered 3 exits: Mat x2 / *Min) -9/Mines (discovered 3 exits: *Mat x2 / [*Exi]) -9/Exiles -8/Mines (discovered 2 exits: *Mat x2) -8/Materials -8/Storage -7/Factory (discovered 2 exits: *Fac / [*Low]) -7/Waste -7/Factory -7/DSF -6/Factory (discovered 4 exits: Low x2 / *Ext x2) -6/Extension (discovered 2 exits: *Fac / *Cet) -6/Cetus -6/Archives (discovered 3 exits: *Fac / *Hub x2) -6/Hub_04(d) (discovered 4 exits: *Fac x4) -5/Factory (discovered 2 exits: *Upp x2) -5/Upper Caves -5/Upper Caves (discovered 2 exits: *Fac / *War) -5/Warlord -4/Proximity Caves -4/Factory (discovered 3 exits: *Upp x2 / *Arm) -4/Armory History --------- Turn | Location | Event 14 | -11/Scrapyard | Discovered new exit (range 16) 73 | -11/Scrapyard | Entered Materials 116 | -10/Materials | Identified exit to Mines 232 | -10/Materials | Discovered new exit (range 7) 300 | -10/Materials | Build established: Mutant 573 | -10/Materials | Entered Mines 931 | -10/Mines | Found a hidden stash of uninstalled traps 1049 | -10/Mines | Discovered new exit (range 5) 1204 | -10/Mines | Lost 4 parts (1p1n2w) 1214 | -10/Mines | Discovered new exit (range 10) 1263 | -10/Mines | Learned 4 Materials zone layouts 1582 | -10/Mines | Entered Materials 1582 | -9/Materials | Evolved 2 slots: Utility x2 1583 | -9/Materials | Identified exit to Mines 1583 | -9/Materials | Identified exit to Materials 1876 | -9/Materials | Entered Mines 1940 | -9/Mines | Met a Derelict bent on vengeance 2173 | -9/Mines | Assembled infested the area 2248 | -9/Mines | Crushed by falling debris 2279 | -9/Mines | Lost 6 parts (2p3u1w) 2299 | -9/Mines | Learned location of Storage (-8) 2322 | -9/Mines | Assisted by bots powering up and referring to "LRC-V3" 2356 | -9/Mines | Discovered exit to Materials (range 8) 2499 | -9/Mines | Discovered exit to Materials (range 11) 2618 | -9/Mines | Build established: Scavenger-Mutant 2652 | -9/Mines | Discovered new exit (range 5) 2662 | -9/Mines | Entered Exiles 2662 | -9/Exiles | Accompanied by 1 ally 2687 | -9/Exiles | Discovered new exit (range 15) 2710 | -9/Exiles | Met 8R-AWN 2737 | -9/Exiles | Met EX-HEX 2868 | -9/Exiles | Met EX-DEC 3319 | -9/Exiles | Build established: Mutant 3350 | -9/Exiles | Entered Mines 3350 | -8/Mines | Accompanied by 1 ally 3811 | -8/Mines | Discovered exit to Materials (range 7) 4156 | -8/Mines | Core integrity fell below 50% 4194 | -8/Mines | Lost 3 parts (1p1n1w) 4279 | -8/Mines | Discovered exit to Materials (range 6) 4858 | -8/Mines | Entered Materials 4858 | -8/Materials | Evolved 2 slots: Propulsion x1, Utility x1 4920 | -8/Materials | Identified exit to Storage 5543 | -8/Materials | Entered Storage 5894 | -8/Storage | Build established: Scavenger-Mutant 5952 | -8/Storage | Discovered new exit (range 16) 6157 | -8/Storage | Entered Factory 6157 | -7/Factory | Evolved 2 slots: Propulsion x1, Utility x1 6192 | -7/Factory | Discovered new exit (range 20) 6255 | -7/Factory | Discovered new exit (range 46) 6309 | -7/Factory | Sucked down chute 6309 | -7/Factory | Entered Waste 6324 | -7/Waste | EMP discharged 6352 | -7/Waste | Spotted C-40 Crusher 6352 | -7/Waste | Spotted C-40 Crusher 6355 | -7/Waste | Spotted C-40 Crusher 6358 | -7/Waste | Spotted C-40 Crusher 6366 | -7/Waste | Spotted C-40 Crusher 6378 | -7/Waste | Crushed by Compactor (1 part destroyed, 2 dropped) 6395 | -7/Waste | Crushed by Compactor (1 part destroyed) 6405 | -7/Waste | Spotted C-40 Crusher 6424 | -7/Waste | EMP discharged 6424 | -7/Waste | System corruption reached 10% 6424 | -7/Waste | Crushed by Compactor (1 part destroyed, 2 dropped) 6437 | -7/Waste | Discovered new exit (range 12) 6443 | -7/Waste | Entered Factory 6455 | -7/Factory | Lost 3 parts (3u) 6474 | -7/Factory | Identified exit to DSF 6512 | -7/Factory | Entered DSF 6513 | -7/DSF | Joined Warlord attack on 0b10 via DSF 6538 | -7/DSF | Additional patrols routed to DSF 6578 | -7/DSF | Found Prototype Device 6597 | -7/DSF | Discovered new exit (range 15) 6609 | -7/DSF | Entered Factory 6609 | -6/Factory | Evolved 2 slots: Utility x2 6609 | -6/Factory | Identified Active Sensor Suite 6689 | -6/Factory | Build established: Hacker-Mutant 6700 | -6/Factory | Identified exit to Lower Caves 6700 | -6/Factory | Identified exit to Extension 6954 | -6/Factory | Entered Extension 6997 | -6/Extension | Rescued a captive Derelict 7000 | -6/Extension | Rescued a captive Derelict 7191 | -6/Extension | Rescued A7 7252 | -6/Extension | Spotted B-75 Beast 7265 | -6/Extension | Spotted B-75 Beast 7293 | -6/Extension | Extracted ID and sensor layout for unrecognized location from A7's data core 7303 | -6/Extension | Rescued a captive Derelict 7337 | -6/Extension | Lost 6 parts (1p1n4u) 7547 | -6/Extension | Central database locked down 7602 | -6/Extension | Discovered new exit (range 10) 7603 | -6/Extension | Discovered new exit (range 6) 7621 | -6/Extension | Disrupted transfer network 7637 | -6/Extension | Entered Cetus 7637 | -6/Cetus | Accompanied by 4 allies 7661 | -6/Cetus | Spotted Cetus Guard 7661 | -6/Cetus | Spotted Cetus Guard 7662 | -6/Cetus | Spotted Cetus Guard 7664 | -6/Cetus | Allies destroyed Cetus Guard 7667 | -6/Cetus | Spotted Cetus Guard 7668 | -6/Cetus | Allies destroyed Cetus Guard 7682 | -6/Cetus | Allies destroyed Cetus Guard 7698 | -6/Cetus | Allies destroyed Cetus Guard 7725 | -6/Cetus | Lost 3 parts (1p2u) 7882 | -6/Cetus | Core integrity fell below 50% 8003 | -6/Cetus | Build established: Scavenger-Mutant 8027 | -6/Cetus | Discovered new exit (range 16) 8057 | -6/Cetus | Entered Archives 8229 | -6/Archives | Discovered new exit (range 15) 8331 | -6/Archives | Discovered new exit (range 16) 8349 | -6/Archives | Unable to access archive contents 8373 | -6/Archives | Discovered new exit (range 16) 8481 | -6/Archives | Entered Hub_04(d) 8537 | -6/Hub_04(d) | Identified exit to Factory 8588 | -6/Hub_04(d) | Network Hub disabled 8591 | -6/Hub_04(d) | Spotted Lightning 8591 | -6/Hub_04(d) | Spotted Lightning 8591 | -6/Hub_04(d) | Spotted Lightning 8607 | -6/Hub_04(d) | Entered Factory 8607 | -5/Factory | Evolved 2 slots: Utility x2 8612 | -5/Factory | Identified exit to Upper Caves 8656 | -5/Factory | Central database locked down 8685 | -5/Factory | Build established: Hacker-Mutant 8689 | -5/Factory | Fabricated Adv. Signal Interpreter? 8806 | -5/Factory | Fabricated Adv. Sensor Array? 8880 | -5/Factory | Entered Upper Caves 8881 | -5/Upper Caves | Encountered a Warlord checkpoint 8991 | -5/Upper Caves | Build established: Wizard-Mutant 9341 | -5/Upper Caves | Build established: Hacker-Mutant 9394 | -5/Upper Caves | Learned Factory emergency access door positions 9403 | -5/Upper Caves | Discovered new exit (range 3) 9410 | -5/Upper Caves | Identified exit to Upper Caves 9617 | -5/Upper Caves | Lost 5 parts (1p2n1u1w) 10092 | -5/Upper Caves | Learned Factory terminal intel 10310 | -5/Upper Caves | Entered another Upper Caves area 10343 | -5/Upper Caves | Discovered new exit (range 10) 10347 | -5/Upper Caves | Identified exit to Factory 10584 | -5/Upper Caves | Learned location of Warlord (-5) 10698 | -5/Upper Caves | Learned Factory terminal intel 10904 | -5/Upper Caves | Discovered new exit (range 9) 10907 | -5/Upper Caves | Identified exit to Warlord 10937 | -5/Upper Caves | Entered Warlord 10977 | -5/Warlord | Build established: Hacker-Scout 11061 | -5/Warlord | Met Warlord 11086 | -5/Warlord | Warlord's base attacked by MAIN.C 11133 | -5/Warlord | Found Prototype Energy Gun 11135 | -5/Warlord | Found Prototype Energy Gun 11137 | -5/Warlord | Found Prototype Launcher 11390 | -5/Warlord | Warlord forces counterattacked 11393 | -5/Warlord | Spotted Striker 11404 | -5/Warlord | Spotted Striker 11406 | -5/Warlord | Identified Vortex Catalyst Activator 11409 | -5/Warlord | Spotted Striker 11410 | -5/Warlord | Destroyed Striker 11413 | -5/Warlord | Destroyed Striker 11434 | -5/Warlord | Destroyed 13 combat bots 11447 | -5/Warlord | Discovered new exit (range 15) 11462 | -5/Warlord | Identified exit to Proximity Caves 11464 | -5/Warlord | Entered Proximity Caves 11464 | -4/Proximity Caves | Accompanied by 1 ally 11570 | -4/Proximity Caves | Spotted B-86 Titan 11571 | -4/Proximity Caves | Identified Vortex Rifle (x2) 11594 | -4/Proximity Caves | Build established: Hacker-Mutant 11630 | -4/Proximity Caves | Destroyed B-86 Titan 11675 | -4/Proximity Caves | Lost 10 parts (3n3u4w) 11756 | -4/Proximity Caves | Learned Research stockpile data 11882 | -4/Proximity Caves | Discovered exit to Factory (range 21) 11920 | -4/Proximity Caves | Entered Factory 11920 | -4/Factory | Accompanied by 1 ally 11920 | -4/Factory | Evolved 2 slots: Propulsion x2 11922 | -4/Factory | Loaded intel: 26 terminal locations 11966 | -4/Factory | Discovered new exit (range 9) 12229 | -4/Factory | Destroyed 8 combat bots 12232 | -4/Factory | Identified exit to Upper Caves 12232 | -4/Factory | Identified exit to Armory 12444 | -4/Factory | Spotted B-86 Titan 12614 | -4/Factory | Fabricated Adv. Signal Interpreter (x2) 12690 | -4/Factory | Lost 5 parts (4n1u) 12775 | -4/Factory | Entered Armory 12802 | -4/Armory | Lost 5 parts (1p2n1u1w) 12950 | -4/Armory | Found Exp. Melee Analysis Suite 12956 | -4/Armory | Found Exp. Melee Analysis Suite 13138 | -4/Armory | Core integrity fell below 50% 13180 | -4/Armory | System corruption reached 10% 13201 | -4/Armory | Core integrity fell below 20% 13213 | -4/Armory | Destroyed by L-61 Swordsman with Power Sword Last Messages --------------- 13157_ Transport Mainframe disabled. 13161_ P-70 Sage heat damages core (-12). 13161_ Antigrav System melted. 13176_ Imp. Target Analyzer severed. 13185_ System corrupted: Adv. Transmission Jammer rejected. 13185_ Chain reaction triggered in Lgt. Antimatter Reactor. 13185_ P-70 Sage destroyed. 13190_ Quantum Reactor destroyed. 13191_ L-61 Swordsman suffers critical hit (Meltdown). 13191_ Adv. Melee Analysis Suite melted. 13191_ Imp. Core Shielding melted. 13193_ Acquired 69 matter. 13194_ Enh. Nova Cannon destroyed. 13195_ Exp. Melee Analysis Suite severed. 13196_ Slammed into L-61 Swordsman. 13203_ Biometal Heavy Treads destroyed. 13204_ L-61 Swordsman destroyed. 13210_ :P9CK|AW/ILOU8651AXJV5QSL YJB/% 70N 13211_ Phasing Sabre severed. [Achievement: I Think I Know What's Going On] Map ----- +----------------------------------------------------+ | ???????????????????????# # """" # # "? "?? | | ???????????????????????" # """" # # " "?? | | ??????????????????????? # """" + # " " # | | ???????????????????????# # " "" # # # | | ???????????????????##### # # ^# # | | ????????????????#### # # !! # # # | | ????????????????# ; # !!! ]#^^# # | | ???????????????## ; # !! # # # | | ???????????????# ;w ; # # # | | ???????????????# # # # | | ???????????????# % # ############## | | ???????????????# # #????????????? | | ???????????????# ###" #????????????? | | ????????????????# #### #????????????? | | ????????????????# # #????????????? | | ??????????????????# # #????????#???? | | ??????????????????# # ##?????? #???? | | ??????????????????## # #######+#???? | | ???????????????????# ]] # # #???? | | ???????????????????# ] # #???? | | ???????????????????## % ] # s #???? | | ????????????????????# ] ] #???? | | ????????????????????# ]] = #???? | | ?????????????????????? ;! ; ]] # [ #???? | | ???????????????????????# %l = #???? | | ???????????????????????#=@/ # #???? | | ???????????????????????# # + # #???? | | ????????????????????####;#### +##/# ###+#####???? | | ????????????????????# # #???????? | | ????????????????????# # #???????? | | ????????????????????# == # #???????? | | ????????????????????# ]= # #???????? | | ????????????????????# # """ """ #???????? | | ????????????????????#! [ == # """ """ #???????? | | ????????????????????#[= ]* # """ """ #???????? | | ????????????????????# # """ """ #???????? | | ????????????????????# # """ """ #???????? | | ????????????????????# # """ """ #???????? | | ????????????????????# # """ """ #???????? | | ????????????????????######### #???????? | | ????????????????????????????##############???????? | | ?????????????????????????????????????????????????? | | ?????????????????????????????????????????????????? | | ?????????????????????????????????????????????????? | | ?????????????????????????????????????????????????? | | ?????????????????????????????????????????????????? | | ?????????????????????????????????????????????????? | | ?????????????????????????????????????????????????? | | ?????????????????????????????????????????????????? | | ?????????????????????????????????????????????????? | +----------------------------------------------------+ Best States ------------- Heat Dissipation 84 Coolant Potential 65 Energy Generation 25 Energy Capacity 525 Matter Stores 450 Matter Capacity 450 Sight Range 22 Robot Scan Range 20 Terrain Scan Range 14 Terrain Scan Density 85 Jamming Range 16 Armor Coverage 600 Resistance: KI 30 Resistance: EX 25 Weapon Shielding 66 Evasion (%) 63 Targeting Accuracy 5 Melee Accuracy 12 Target Analysis 6 Recoil Reduction 4 Matter Filtering 30 Offensive Hacking 44 Defensive Hacking 26 Item Schematics ----------------- Adv. Terrain Scanner | -6/Extension | Hacked Tesla Rifle | -6/Hub_04(d) | Hacked Adv. Signal Interpreter | -5/Factory | Hacked Adv. Sensor Array | -5/Factory | Hacked Robot Schematics ------------------ None Fabricated ------------ Adv. Signal Interpreter | x2 | -5/Factory Adv. Sensor Array | x1 | -5/Factory Adv. Signal Interpreter | x2 | -4/Factory Alien Tech Used ----------------- None Achievements -------------- I Think I Know What's Going On Challenges ------------ None Game ------ Seed CombatArmageddonExoskeleton Manual? 0 Play Time 03:19:32 Cumulative 176.0 hours Start 2022.03.28 @ 13:51:20 End 2022.03.29 @ 04:18:31 Sessions 3 Manual Loads 0 Difficulty Rogue Special Mode None Game No. 47 Rogue 47 Adventurer 0 Explorer 0 Win Type - Total 13 Types 7/2/2/1/1/0/0/0/0 Lore% 50 Gallery% 73 Achievement% 63 Wizard Run 0 Options --------- ASCII 0 Keyboard 0 Movement Numpad Keybinds 0 Fullscreen 1 Font 18/TerminusBold Map View 76x50 Tactical HUD 1 Map Filters NONE Filters NONE Steam 1 RUN: 60f7a52a-3e19-4ae5-9fca-731bdc1828c2